bitfinex/quotes_SOLUSD_20250924
["timestamp","ask_amount","ask_price","bid_price","bid_amount"]
[1758686914183,3.73064956,207.19,207.18,0.76]
[1758686914368,16.88868464,207.24,207.18,0.76]
[1758686914685,26.0,207.26,207.18,0.76]
[1758686914896,3.73064956,207.23,207.18,0.76]
[1758686915066,4.82477041,207.27,207.18,0.76]
[1758686915067,13.59559401,207.26,207.18,0.1]
[1758686915264,3.73064956,207.2,207.18,0.76]
[1758686915472,3.73064956,207.21,207.18,0.76]
[1758686915689,3.73064956,207.23,207.19,0.66]
[1758686915899,13.94559401,207.26,207.18,0.1]
[1758686916070,3.73064956,207.19,207.18,0.1]
[1758686916474,8.55713732,207.19,207.18,0.1]
[1758686917005,8.90713732,207.19,207.18,0.1]
[1758686918073,8.90713732,207.19,207.09,0.76]
[1758686918074,26.0,207.15,207.09,0.1]
[1758686918303,29.73064956,207.1,207.09,0.1]
[1758686918880,3.73064956,207.1,207.09,0.1]
[1758686919122,30.82765279,207.14,207.09,0.1]
[1758686919390,3.73064956,207.3,207.09,0.1]
[1758686919391,3.73064956,207.13,207.09,5.58881253]
[1758686919592,3.73064956,207.13,207.1,0.66]
[1758686919897,30.82685945,207.18,207.11,0.66]
[1758686920102,3.73064956,207.14,207.11,0.66]
[1758686920407,4.82646347,207.2,207.12,0.66]
[1758686920616,3.73064956,207.16,207.12,0.66]
[1758686920797,3.73064956,207.16,207.13,0.66]
[1758686920999,12.06410989,207.23,207.14,0.66]
[1758686921175,5.17497306,207.26,207.14,0.66]
[1758686921492,3.73064956,207.2,207.14,47.14]
[1758686921699,3.73064956,207.2,207.15,0.66]
[1758686921998,3.73064956,207.2,207.16,0.66]
[1758686922187,3.73064956,207.2,207.17,0.66]
[1758686922395,4.82509047,207.25,207.09,0.1]
[1758686922396,3.73064956,207.18,207.09,0.1]
[1758686922590,26.0,207.17,207.09,0.1]
[1758686922792,26.0,207.17,207.1,0.66]
[1758686923102,3.73064956,207.14,207.1,0.66]
[1758686923285,3.73064956,207.13,207.11,0.66]
[1758686923491,3.73064956,207.12,207.11,0.66]
[1758686924500,3.73064956,207.12,207.09,0.1]
[1758686924688,3.73064956,207.1,207.09,0.1]
[1758686926609,8.55923478,207.1,207.09,0.1]
[1758686927183,4.82858522,207.1,207.09,0.1]
[1758686927377,8.55923478,207.1,207.09,0.1]
[1758686928007,8.90923478,207.1,207.09,0.1]
[1758686928310,8.55923478,207.1,207.09,0.1]
[1758686928683,62.25793179,207.1,207.02,46.44]
[1758686928887,5.4122895,207.03,206.93,0.66]
[1758686929106,26.0,207.05,206.96,0.66]
[1758686929107,5.4122895,206.98,206.96,0.66]
[1758686929414,16.90004828,207.1,206.98,0.66]
[1758686929415,26.0,207.08,206.98,0.66]
[1758686929708,5.4122895,207.05,206.98,0.66]
[1758686930214,5.4122895,207.06,206.98,0.66]
[1758686930394,5.4122895,207.06,206.98,6.0722895]
[1758686930590,5.4122895,207.06,206.99,17.59902941]
[1758686930797,5.4122895,207.06,207.0,0.69]
[1758686931119,5.4122895,207.06,207.01,46.44]
[1758686931315,5.4122895,207.06,207.02,0.69]
[1758686931519,5.4122895,207.06,207.03,0.69]
[1758686931681,5.4122895,207.04,206.97,0.1]
[1758686931982,31.4122895,206.98,206.97,0.1]
[1758686932185,39.59559401,206.98,206.97,0.1]
[1758686932604,36.24367417,206.98,206.97,0.1]
[1758686932978,31.4122895,206.98,206.97,0.1]
[1758686933183,5.4122895,206.98,206.97,0.1]
[1758686934013,5.4122895,206.98,206.97,0.79]
[1758686934505,12.07464179,207.05,206.97,0.79]
[1758686934703,10.24180751,207.06,206.97,0.1]
[1758686935006,5.4122895,206.98,206.97,0.1]
[1758686935509,26.0,207.03,206.97,0.79]
[1758686935706,26.0,207.03,206.97,0.1]
[1758686935914,5.4122895,206.98,206.97,0.1]
[1758686936985,4.83025521,207.03,206.97,0.79]
[1758686937184,5.4122895,206.99,206.97,0.1]
[1758686937580,31.18025521,207.03,206.97,0.1]
[1758686937801,5.4122895,206.98,206.97,0.1]
[1758686938282,5.4122895,206.98,206.71,3.97111041]
[1758686938506,5.4122895,206.86,206.72,51.2374613]
[1758686938710,26.0,206.85,206.73,0.69]
[1758686938900,26.0,206.85,206.73,6.1022895]
[1758686939083,5.4122895,206.86,206.77,5.4122895]
[1758686939285,5.4122895,206.86,206.78,0.69]
[1758686939486,26.0,206.91,206.78,0.69]
[1758686939694,26.0,206.91,206.79,5.4122895]
[1758686940011,5.4122895,206.88,206.8,6.1022895]
[1758686940213,30.83231854,206.94,206.81,0.69]
[1758686940423,5.4122895,206.89,206.82,46.4]
[1758686940707,5.4122895,206.85,206.82,46.4]
[1758686940899,4.83397728,206.87,206.82,46.4]
[1758686941111,5.4122895,206.84,206.83,0.69]
[1758686941413,5.4122895,206.84,206.82,46.4]
[1758686941708,5.4122895,206.84,206.82,47.09]
[1758686941906,4.83366486,206.89,206.82,47.09]
[1758686942208,0.35,206.88,206.82,46.4]
[1758686942386,5.4122895,206.83,206.82,46.4]
[1758686942708,4.8343861,206.86,206.82,46.4]
[1758686942905,5.4122895,206.83,206.77,0.69]
[1758686943107,5.4122895,206.78,206.75,46.38]
[1758686943317,26.0,206.83,206.69,33.46821095]
[1758686943614,26.0,206.83,206.72,0.69]
[1758686943817,5.4122895,206.8,206.72,0.69]
[1758686943987,26.0,206.83,206.72,0.69]
[1758686944186,5.4122895,206.8,206.72,0.69]
[1758686944418,4.8343861,206.86,206.73,5.4122895]
[1758686944617,5.4122895,206.81,206.75,4.83675937]
[1758686944914,5.4122895,206.82,206.76,0.69]
[1758686945208,4.83480105,206.84,206.69,33.46821095]
[1758686945209,26.0,206.74,206.69,33.46821095]
[1758686945504,0.35,206.8,206.7,0.69]
[1758686945706,0.35,206.79,206.69,33.46821095]
[1758686945918,0.35,206.79,206.7,46.38]
[1758686946103,26.0,206.81,206.7,46.38]
[1758686946287,5.4122895,206.77,206.71,0.69]
[1758686946605,26.0,206.83,206.72,46.38]
[1758686946806,5.4122895,206.77,206.73,46.38]
[1758686946988,26.0,206.84,206.74,0.69]
[1758686947307,5.4122895,206.79,206.74,0.69]
[1758686947513,4.83342456,206.9,206.75,46.38]
[1758686947687,5.4122895,206.86,206.76,6.1022895]
[1758686947887,16.90902941,206.99,206.79,13.59559401]
[1758686948087,17.25902941,206.99,206.8,0.69]
[1758686948308,0.35,206.98,206.81,44.44]
[1758686948606,26.0,206.92,206.8,0.69]
[1758686948816,5.4122895,206.85,206.81,46.38]
[1758686948989,4.83208504,206.95,206.82,0.69]
[1758686949188,20.0,207.05,206.88,5.4122895]
[1758686949189,4.82975126,207.05,206.88,5.4122895]
[1758686949413,4.82940043,207.07,206.93,5.4122895]
[1758686949612,0.35,207.19,206.97,5.4122895]
[1758686949812,0.35,207.19,206.93,20.0]
[1758686949813,5.17672072,207.18,206.98,0.69]
[1758686949999,5.4122895,207.05,206.98,0.69]
[1758686950190,36.89352253,207.18,206.97,0.69]
[1758686950191,0.35,207.09,206.97,0.69]
[1758686950410,5.4122895,206.99,206.98,36.0]
[1758686950609,5.4122895,207.0,206.98,36.0]
[1758686950812,5.4122895,207.0,206.98,36.69]
[1758686951012,5.4122895,207.0,206.88,26.0]
[1758686951216,5.4122895,206.96,206.89,47.07]
[1758686951416,5.4122895,206.94,206.89,0.69]
[1758686951618,26.0,207.03,206.91,5.4122895]
[1758686951817,5.4122895,206.99,206.92,0.69]
[1758686952024,5.4122895,206.95,206.92,0.69]
[1758686952422,26.0,207.03,206.92,0.69]
[1758686952624,5.4122895,206.95,206.92,0.69]
[1758686953525,5.4122895,206.94,206.92,0.69]
[1758686953731,16.90984635,206.98,206.87,0.7]
[1758686953928,21.59373795,207.14,206.92,5.4122895]
[1758686954240,5.4122895,207.02,206.94,5.4122895]
[1758686954442,5.4122895,207.0,206.95,47.06]
[1758686954623,0.35,207.08,206.96,0.7]
[1758686954815,5.4122895,207.01,206.96,47.06]
[1758686955015,5.4122895,207.01,206.88,0.7]
[1758686955016,5.4122895,206.97,206.88,0.7]
[1758686955247,5.4122895,206.92,206.89,46.36]
[1758686955448,5.4122895,206.94,206.9,0.7]
[1758686955610,26.0,207.03,206.91,5.4122895]
[1758686955815,5.4122895,206.99,206.92,0.7]
[1758686956016,26.0,207.03,206.93,46.34]
[1758686956219,5.4122895,206.99,206.93,46.34]
[1758686956421,26.0,207.04,206.93,51.7522895]
[1758686956638,5.4122895,207.01,206.94,0.7]
[1758686956829,4.82994606,207.05,206.95,4.83208504]
[1758686957035,4.82933106,207.07,206.96,6.1122895]
[1758686957341,5.4122895,207.05,206.97,6.1122895]
[1758686957649,5.4122895,207.1,207.02,5.4122895]
[1758686957939,5.4122895,207.1,207.03,47.04]
[1758686958514,5.4122895,207.1,207.04,5.52998454]
[1758686958718,16.89515349,207.16,207.04,5.52998454]
[1758686959134,5.4122895,207.11,207.04,5.52998454]
[1758686959339,16.89515349,207.16,207.04,5.52998454]
[1758686959340,16.89515349,207.16,207.04,22.3172354]
[1758686959520,5.4122895,207.1,207.05,0.7]
[1758686959927,5.17718671,207.16,207.02,46.32]
[1758686959928,5.4122895,207.08,207.02,46.32]
[1758686960129,5.4122895,207.08,207.03,0.7]
[1758686960335,5.4122895,207.11,207.04,0.7]
[1758686960536,5.4122895,207.11,207.05,4.82975126]
[1758686960826,4.82625482,207.2,207.07,5.4122895]
[1758686961020,4.82625482,207.2,207.08,6.0722895]
[1758686961225,0.35,207.21,207.09,0.66]
[1758686961426,5.4122895,207.17,207.1,46.32]
[1758686961620,5.4122895,207.15,207.1,46.32]
[1758686961830,20.2,207.39,207.14,5.4122895]
[1758686962044,5.4122895,207.22,207.15,6.0722895]
[1758686962331,5.4122895,207.24,207.16,0.66]
[1758686962539,5.4122895,207.24,207.16,6.0722895]
[1758686962741,0.35,207.26,207.06,59.2]
[1758686962942,5.4122895,207.19,207.12,0.66]
[1758686963233,5.4122895,207.18,207.12,0.66]
[1758686963549,26.35,207.26,207.12,0.66]
[1758686963852,5.4122895,207.2,207.12,0.66]
[1758686964159,26.0,207.26,207.13,5.4122895]
[1758686964447,26.0,207.26,207.07,87.34892064]
[1758686964448,26.0,207.26,207.14,0.66]
[1758686964655,5.4122895,207.21,207.15,46.28]
[1758686964836,4.82509047,207.25,207.15,46.28]
[1758686965032,5.4122895,207.2,207.15,51.10733409]
[1758686965227,5.4122895,207.21,207.16,0.66]
[1758686965430,5.4122895,207.2,207.16,0.66]
[1758686965651,4.82509047,207.25,207.16,0.66]
[1758686965652,5.4122895,207.19,207.17,46.28]
[1758686965860,4.82509047,207.25,207.17,46.28]
[1758686966062,5.4122895,207.2,207.17,46.28]
[1758686966360,5.4122895,207.18,207.09,46.94]
[1758686966563,5.4122895,207.13,207.09,46.94]
[1758686966763,0.35,207.19,207.09,46.28]
[1758686966764,5.4122895,207.1,207.09,46.28]
[1758686967834,5.4122895,207.14,207.09,46.94]
[1758686968045,4.82672072,207.18,207.1,0.66]
[1758686968248,5.4122895,207.14,207.1,0.66]
[1758686968452,5.4122895,207.12,207.1,0.66]
[1758686968658,4.82835208,207.11,207.06,39.86]
[1758686968865,5.4122895,207.08,207.06,85.46]
[1758686969230,5.4122895,207.08,207.06,86.12]
[1758686970246,5.4122895,207.09,207.06,85.46]
[1758686970443,5.4122895,207.12,207.07,0.66]
[1758686970639,5.4122895,207.12,207.08,0.66]
[1758686970846,5.4122895,207.13,207.09,0.66]
[1758686971145,5.4122895,207.14,207.1,0.66]
[1758686971349,4.82713904,207.17,207.1,0.66]
[1758686971551,5.4122895,207.14,207.1,0.66]
[1758686971754,5.4122895,207.11,207.06,39.2]
[1758686971958,4.82713904,207.17,207.07,46.9]
[1758686972157,5.4122895,207.15,207.08,0.66]
[1758686972356,5.4122895,207.1,207.07,46.24]
[1758686972570,5.4122895,207.09,207.07,46.24]
[1758686973056,10.24121177,207.09,207.06,39.2]
[1758686973265,5.4122895,207.09,207.08,46.22]
[1758686973580,4.82741974,207.15,207.08,46.22]
[1758686973745,30.82713812,207.17,207.08,46.88]
[1758686973945,5.4122895,207.14,207.08,46.88]
[1758686974772,5.4122895,207.14,207.09,4.82881838]
[1758686974942,5.4122895,207.14,207.1,0.66]
[1758686975346,16.89270717,207.19,207.11,0.66]
[1758686975547,5.4122895,207.14,207.11,0.66]
[1758686976147,0.35,207.25,207.12,6.0722895]
[1758686976438,0.35,207.31,207.13,46.86]
[1758686976647,5.4122895,207.26,207.18,5.4122895]
[1758686976851,5.4122895,207.26,207.19,51.68648776]
[1758686977051,5.17372534,207.31,207.2,52.2722895]
[1758686977243,5.4122895,207.26,207.2,46.86]
[1758686977459,5.17372534,207.31,207.2,46.86]
[1758686977642,5.4122895,207.26,207.2,46.86]
[1758686977981,37.9086286,207.36,207.23,5.4122895]
[1758686977982,5.4122895,207.3,207.23,5.4122895]
[1758686978138,5.4122895,207.29,207.23,0.66]
[1758686978965,5.4122895,207.29,207.24,4.82532329]
[1758686979141,5.4122895,207.28,207.24,0.66]
[1758686979546,5.4122895,207.28,207.25,46.84]
[1758686979740,5.4122895,207.29,207.25,46.84]
[1758686979950,4.82357836,207.32,207.25,46.84]
[1758686980265,4.82317681,207.34,207.25,46.84]
[1758686980466,5.4122895,207.3,207.25,46.84]
[1758686980677,5.4122895,207.3,207.26,0.66]
[1758686980961,4.82317681,207.34,207.26,0.66]
[1758686981162,5.4122895,207.3,207.26,5.48480891]
[1758686981373,4.82317681,207.34,207.27,0.66]
[1758686981548,26.55,207.36,207.27,0.66]
[1758686981549,5.4122895,207.33,207.27,6.0722895]
[1758686982063,5.4122895,207.32,207.27,0.66]
[1758686982271,17.07908859,207.36,207.28,0.66]
[1758686982463,5.4122895,207.32,207.28,0.66]
[1758686982657,17.07908859,207.36,207.28,0.66]
[1758686982867,5.4122895,207.29,207.24,0.66]
[1758686983169,4.82428406,207.29,207.25,46.14]
[1758686983373,5.4122895,207.26,207.25,46.14]
[1758686983666,5.4122895,207.27,207.25,46.14]
[1758686983849,4.82337928,207.33,207.25,46.14]
[1758686984060,4.82337928,207.33,207.26,0.66]
[1758686984250,5.4122895,207.3,207.26,0.66]
[1758686984455,5.4122895,207.27,207.21,0.66]
[1758686984645,0.35,207.31,207.22,46.14]
[1758686984846,5.4122895,207.25,207.21,0.66]
[1758686985045,5.4122895,207.25,207.22,0.66]
[1758686985368,5.4122895,207.25,207.23,46.12]
[1758686985561,5.4122895,207.26,207.23,46.12]
[1758686985764,5.4122895,207.29,207.24,0.66]
[1758686986072,4.82362046,207.32,207.25,0.66]
[1758686986275,5.4122895,207.29,207.25,0.66]
[1758686986570,5.4122895,207.28,207.25,0.66]
[1758686986769,5.02267187,207.36,207.26,6.0722895]
[1758686986944,5.4122895,207.33,207.28,4.82439212]
[1758686987143,5.4122895,207.33,207.29,46.78]
[1758686987366,5.02253913,207.36,207.3,0.66]
[1758686987367,0.2,207.36,207.3,0.66]
[1758686987573,5.4122895,207.34,207.3,0.66]
[1758686987764,5.4122895,207.35,207.31,0.66]
[1758686987966,5.4122895,207.34,207.31,0.66]
[1758686988348,0.2,207.36,207.31,0.66]
[1758686988850,5.6122895,207.36,207.32,0.66]
[1758686989060,0.2,207.36,207.32,0.66]
[1758686989278,5.6122895,207.36,207.32,0.66]
[1758686989569,5.4122895,207.35,207.32,0.66]
[1758686990075,0.2,207.36,207.33,46.1]
[1758686990261,0.2,207.36,207.33,46.08]
[1758686990465,5.4122895,207.35,207.33,46.8]
[1758686990649,0.2,207.36,207.34,0.72]
[1758686990847,0.2,207.36,207.35,0.72]
[1758686991052,0.2,207.36,207.35,5.54276344]
[1758686991974,0.2,207.39,207.35,21.32860889]
[1758686992170,0.2,207.39,207.38,3.72893685]
[1758686992377,0.2,207.39,207.33,4.82312391]
[1758686992674,0.2,207.39,207.35,4.44893685]
[1758686992844,0.2,207.39,207.36,3.72893685]
[1758686993044,0.2,207.39,207.37,4.8222983]
[1758686993663,0.2,207.39,207.37,5.5422983]
[1758686993867,0.2,207.39,207.32,0.72]
[1758686994055,3.92893685,207.39,207.33,46.06]
[1758686994249,0.2,207.39,207.33,46.06]
[1758686994455,0.2,207.39,207.35,3.72893685]
[1758686994967,0.2,207.39,207.37,3.72893685]
[1758686995146,0.2,207.39,207.38,4.82206577]
[1758686995350,0.2,207.39,207.38,9.27100262]
[1758686996860,0.2,207.39,207.38,55.31100262]
[1758686997769,26.0,207.51,207.38,55.31100262]
[1758686997770,26.0,207.51,207.38,67.36616705]
[1758686998079,3.72893685,207.49,207.41,3.72893685]
[1758686998260,0.55,207.5,207.41,3.72893685]
[1758686998669,3.72893685,207.49,207.41,3.72893685]
[1758686998874,0.55,207.5,207.41,3.72893685]
[1758686999174,4.81950937,207.49,207.42,46.0]
[1758686999584,3.72893685,207.48,207.42,46.0]
[1758686999879,16.8682828,207.49,207.38,4.82196385]
[1758686999880,3.72893685,207.44,207.38,46.0]
[1758687000261,3.72893685,207.43,207.38,46.0]
[1758687000680,3.72893685,207.41,207.38,46.0]
[1758687000855,26.0,207.43,207.38,46.0]
[1758687001058,3.72893685,207.45,207.38,46.0]
[1758687001270,16.8682828,207.49,207.38,46.0]
[1758687001271,3.72893685,207.47,207.39,4.44893685]
[1758687001471,3.72893685,207.47,207.39,8.55075364]
[1758687001760,3.72893685,207.47,207.39,4.82181679]
[1758687001962,3.72893685,207.45,207.38,46.0]
[1758687002164,29.72893685,207.45,207.38,46.0]
[1758687002353,29.72893685,207.45,207.35,0.72]
[1758687002354,3.72893685,207.43,207.35,0.72]
[1758687002553,0.55,207.43,207.36,45.98]
[1758687002784,3.72893685,207.41,207.37,45.98]
[1758687002955,4.27893685,207.41,207.32,5.5434586]
[1758687003164,4.82160077,207.4,207.33,54.53206658]
[1758687003573,8.55053762,207.4,207.33,54.53206658]
[1758687003862,26.0,207.42,207.27,50.12228141]
[1758687003863,13.59559401,207.42,207.28,0.72]
[1758687004060,0.55,207.39,207.28,4.44893685]
[1758687004279,3.72893685,207.36,207.29,49.68893685]
[1758687004464,26.0,207.42,207.31,3.72893685]
[1758687004677,3.72893685,207.39,207.31,3.72893685]
[1758687004883,3.72893685,207.41,207.33,3.72893685]
[1758687005185,4.82206577,207.38,207.32,0.72]
[1758687005387,4.82206577,207.38,207.33,45.96]
[1758687005388,3.72893685,207.37,207.33,45.96]
[1758687005568,3.72893685,207.37,207.3,3.72893685]
[1758687005569,3.72893685,207.37,207.34,45.96]
[1758687005772,8.55100262,207.38,207.34,45.96]
[1758687006270,4.82206577,207.38,207.34,45.96]
[1758687006590,3.72893685,207.39,207.34,45.96]
[1758687006792,29.72893685,207.37,207.29,0.72]
[1758687006989,26.0,207.37,207.29,46.68]
[1758687007172,3.72893685,207.34,207.29,46.68]
[1758687007662,5.37320149,207.34,207.26,39.14]
[1758687007996,3.72893685,207.32,207.27,45.94]
[1758687008292,3.72893685,207.3,207.27,45.94]
[1758687008470,3.72893685,207.3,207.26,39.14]
[1758687008676,3.72893685,207.3,207.27,45.94]
[1758687008871,0.55,207.32,207.27,45.94]
[1758687009202,3.72893685,207.29,207.18,0.72]
[1758687009364,3.72893685,207.25,207.19,45.92]
[1758687009564,3.72893685,207.23,207.18,0.72]
[1758687009786,26.0,207.27,207.18,46.64]
[1758687010199,0.55,207.28,207.11,65.12]
[1758687010200,3.72893685,207.19,207.11,39.12]
[1758687010501,3.72893685,207.18,207.12,45.92]
[1758687010680,3.72893685,207.19,207.12,45.92]
[1758687010875,39.59559401,207.26,207.15,3.72893685]
[1758687011092,3.72893685,207.23,207.16,4.44893685]
[1758687011293,4.82578901,207.22,207.16,0.72]
[1758687011494,4.82530609,207.25,207.16,5.54708256]
[1758687011677,3.72893685,207.24,207.16,5.54708256]
[1758687011878,5.37482735,207.27,207.19,3.72893685]
[1758687011879,26.0,207.27,207.19,3.72893685]
[1758687012078,0.55,207.35,207.21,13.59559401]
[1758687012396,0.55,207.38,207.25,3.72893685]
[1758687012578,3.72893685,207.35,207.26,46.64]
[1758687012783,0.55,207.38,207.27,46.62]
[1758687012986,3.72893685,207.36,207.28,4.41893685]
[1758687013171,3.72893685,207.36,207.28,3.72893685]
[1758687013500,3.72893685,207.36,207.27,45.9]
[1758687013501,4.82113585,207.42,207.3,8.55286352]
[1758687013667,3.72893685,207.39,207.31,0.69]
[1758687013991,26.0,207.39,207.31,0.69]
[1758687014216,3.72893685,207.38,207.31,0.69]
[1758687014572,4.82113585,207.42,207.33,3.72893685]
[1758687014771,8.5500727,207.42,207.34,46.59]
[1758687015186,3.72893685,207.42,207.35,3.72893685]
[1758687015393,3.72893685,207.42,207.36,5.51253086]
[1758687015772,3.72893685,207.43,207.36,5.51253086]
[1758687015975,3.72893685,207.41,207.36,5.51253086]
[1758687016174,26.0,207.43,207.36,5.51253086]
[1758687016477,3.72893685,207.38,207.34,45.88]
[1758687016677,0.55,207.37,207.26,3.72893685]
[1758687016976,3.72893685,207.35,207.27,50.29893685]
[1758687017299,3.72893685,207.34,207.28,0.69]
[1758687017488,3.72893685,207.32,207.29,45.88]
[1758687017800,3.72893685,207.3,207.22,0.69]
[1758687017978,26.0,207.31,207.22,46.55]
[1758687018177,3.72893685,207.28,207.22,46.55]
[1758687018390,3.72893685,207.27,207.22,46.55]
[1758687018799,3.72893685,207.27,207.23,0.69]
[1758687019188,3.72893685,207.31,207.24,0.69]
[1758687019390,3.72893685,207.28,207.21,0.69]
[1758687019585,8.55338174,207.28,207.22,46.55]
[1758687019786,3.72893685,207.28,207.22,46.55]
[1758687020307,4.82369398,207.31,207.22,46.55]
[1758687020600,26.0,207.33,207.24,3.72893685]
[1758687020804,3.72893685,207.31,207.24,4.44893685]
[1758687020995,26.0,207.32,207.24,0.72]
[1758687021403,3.72893685,207.3,207.24,0.72]
[1758687021597,26.0,207.35,207.27,3.72893685]
[1758687021806,16.87804406,207.37,207.28,45.84]
[1758687022107,3.72893685,207.3,207.28,45.84]
[1758687022406,4.8222983,207.37,207.29,0.72]
[1758687022584,4.82202613,207.39,207.29,4.44893685]
[1758687022780,3.72893685,207.37,207.3,4.44893685]
[1758687022978,4.82202613,207.39,207.3,4.44893685]
[1758687023201,3.72893685,207.37,207.3,4.44893685]
[1758687023405,3.72893685,207.45,207.28,45.84]
[1758687023406,23.91966025,207.54,207.31,0.72]
[1758687023706,4.81997397,207.47,207.35,3.72893685]
[1758687023883,4.81997397,207.47,207.32,16.88211459]
[1758687023884,4.81997397,207.47,207.36,46.54]
[1758687024085,3.72893685,207.37,207.3,0.72]
[1758687024297,3.72893685,207.37,207.32,45.82]
[1758687024491,26.55,207.42,207.32,45.82]
[1758687024492,3.72893685,207.35,207.32,46.54]
[1758687024892,3.72893685,207.36,207.33,0.72]
[1758687025597,3.72893685,207.36,207.32,45.82]
[1758687025598,3.72893685,207.37,207.34,0.72]
[1758687026087,26.0,207.41,207.34,0.72]
[1758687026288,26.0,207.41,207.34,46.52]
[1758687026692,12.05013161,207.47,207.35,3.72893685]
[1758687027008,3.72893685,207.38,207.35,46.52]
[1758687027477,3.72893685,207.37,207.35,46.52]
[1758687027884,3.72893685,207.38,207.35,46.52]
[1758687028492,4.82139827,207.41,207.3,0.72]
[1758687028694,0.55,207.4,207.35,45.8]
[1758687029018,0.55,207.39,207.35,45.8]
[1758687029180,16.87481903,207.41,207.35,45.8]
[1758687029380,4.82139827,207.41,207.36,45.78]
[1758687029685,3.72893685,207.41,207.37,0.72]
[1758687029902,3.72893685,207.4,207.37,0.72]
[1758687030106,30.82112012,207.43,207.37,0.72]
[1758687030306,3.72893685,207.41,207.37,0.72]
[1758687030512,30.82112012,207.43,207.37,0.72]
[1758687030811,3.72893685,207.41,207.37,0.72]
[1758687031284,3.72893685,207.4,207.37,0.72]
[1758687031489,3.72893685,207.4,207.38,0.72]
[1758687031911,4.82114686,207.42,207.38,0.72]
[1758687032203,26.0,207.43,207.36,50.60247833]
[1758687032405,4.82084059,207.44,207.39,0.72]
[1758687032599,3.72893685,207.42,207.39,0.72]
[1758687033000,3.72893685,207.42,207.36,50.60247833]
[1758687033001,17.41503155,207.53,207.4,0.72]
[1758687033203,0.55,207.52,207.4,0.72]
[1758687033398,3.72893685,207.45,207.4,0.72]
[1758687033596,16.86503155,207.53,207.36,16.87880549]
[1758687033597,3.72893685,207.44,207.36,16.87880549]
[1758687033798,3.72893685,207.42,207.38,0.72]
[1758687034010,3.72893685,207.41,207.38,0.72]
[1758687034394,3.72893685,207.41,207.37,45.74]
[1758687034395,0.55,207.48,207.39,0.72]
[1758687034598,3.72893685,207.42,207.39,0.72]
[1758687036013,4.82092486,207.43,207.39,0.72]
[1758687036222,3.72893685,207.43,207.4,0.72]
[1758687036814,12.59978713,207.48,207.37,45.74]
[1758687036815,3.72893685,207.42,207.37,45.74]
[1758687037129,3.72893685,207.39,207.38,45.7]
[1758687038390,4.82145687,207.41,207.38,45.7]
[1758687038590,3.72893685,207.39,207.35,4.82265033]
[1758687038814,3.72893685,207.39,207.36,46.42]
[1758687039016,3.72893685,207.38,207.29,39.12]
[1758687039192,3.72893685,207.35,207.31,0.72]
[1758687039393,3.72893685,207.35,207.32,0.72]
[1758687039591,17.42487763,207.41,207.3,50.50392667]
[1758687039592,3.72893685,207.36,207.33,0.72]
[1758687039787,17.42487763,207.41,207.33,0.72]
[1758687040118,3.72893685,207.36,207.33,0.72]
[1758687040692,4.82214353,207.38,207.34,0.72]
[1758687040911,4.82214353,207.38,207.3,45.68]
[1758687042003,3.72893685,207.37,207.31,0.72]
[1758687042406,4.82160077,207.4,207.32,4.82346131]
[1758687042606,4.82160077,207.4,207.33,0.72]
[1758687042921,3.72893685,207.38,207.33,0.72]
[1758687043125,3.72893685,207.37,207.33,0.72]
[1758687043422,3.72893685,207.37,207.34,0.72]
[1758687043592,3.72893685,207.37,207.35,45.64]
[1758687044406,3.72893685,207.38,207.35,45.64]
[1758687044602,4.82157499,207.41,207.33,0.72]
[1758687044996,5.37113181,207.43,207.34,45.62]